[Event "GER-ch Women Open 2019"]
[Site "Bodenmais"]
[Date "2019.07.28"]
[Round "2.3"]
[White "Pribylova, Ruzena"]
[Black "Peglau, Sarah"]
[Result "0-1"]
[ECO "C10"]
[WhiteElo "1867"]
[BlackElo "1525"]
[Annotator "NA RC"]
[PlyCount "84"]
[EventDate "2019.07.27"]
[EventType "swiss"]
[EventCountry "GER"]
[SourceTitle "playchess.com"]
[Source "ChessBase"]
[SourceQuality "1"]
[TimeControl "40/5400+30:900+30"]

1. e4 {[%emt 0:00:00]} e6 {[%emt 0:00:04]} 2. d4 {[%emt 0:01:44]} d5 {[%emt 0:00:05]} 3. Nd2 {[%emt 0:02:23]} dxe4 {[%emt 0:00:26]} 4. Nxe4 {[%emt 0:00:02]} Bd7 {[%emt 0:00:12]} 5. Nf3 {[%emt 0:00:30]} Bc6 {[%emt 0:00:16]} 6. Bd3 {[%emt 0:01:30]} Nd7 {[%emt 0:00:26]} 7. O-O {[%emt 0:00:46]} Ngf6 {[%emt 0:00:22]} 8. Nxf6+ {[%emt 0:17:53]} Qxf6 {[%emt 0:04:49]} 9. Be2 {[%emt 0:01:49]} Bd6 {[%emt 0:03:32]} 10. Bg5 {[%emt 0:01:07]} Qf5 {[%emt 0:05:54]} 11. Qd2 {[%emt 0:01:18]} h6 {[%emt 0:15:49]} 12. Bd3 {[%emt 0:11:06]} Qg4 {[%emt 0:02:26]} 13. h3 {[%emt 0:05:52]} Qh5 {[%emt 0:00:21]} 14. Bf4 {[%emt 0:01:33]} Bxf3 {[%emt 0:02:12]} 15. Bxd6 {[%emt 0:00:45]} cxd6 {[%emt 0:03:14]} 16. gxf3 {[%emt 0:00:26]} Qxf3 {[%emt 0:07:52]} 17. Qe3 {[%emt 0:00:47]} Qxe3 {[%emt 0:05:01]} 18. fxe3 {[%emt 0:00:02]} d5 {[%emt 0:04:05]} 19. e4 {[%emt 0:01:16]} Nb6 {[%emt 0:10:24]} 20. exd5 {[%emt 0:07:29]} Nxd5 {[%emt 0:00:17]} 21. c4 {[%emt 0:00:49]} Nb4 {[%emt 0:02:52]} 22. Be4 {[%emt 0:02:24]} Rc8 {[%emt 0:02:31]} 23. a3 {[%emt 0:01:15]} Nc6 {[%emt 0:01:51]} 24. d5 {[%emt 0:00:23]} exd5 {[%emt 0:03:36]} 25. Bxd5 {[%emt 0:00:14]} f6 {[%emt 0:08:29]} 26. c5 {[%emt 0:03:35]} Kd7 {[%emt 0:08:30]} 27. Rad1 {[%emt 0:01:36]} Kc7 {[%emt 0:01:22]} 28. Rd2 {[%emt 0:02:28]} Rhe8 {[%emt 0:03:06]} 29. Rfd1 {[%emt 0:08:49]} Rcd8 {[%emt 0:00:28]} 30. Kf2 {[%emt 0:01:04]} f5 {[%emt 0:01:24]} 31. b4 {[%emt 0:00:46]} f4 {[%emt 0:01:43]} 32. b5 {[%emt 0:04:24]} Ne5 {[%emt 0:01:11]} 33. h4 {[%emt 0:15:24]} g5 {[%emt 0:00:02]} 34. hxg5 {[%emt 0:00:45]} hxg5 {[%emt 0:00:02]} 35. a4 {[%emt 0:02:09]} Ng4+ {[%emt 0:01:27]} 36. Kf3 {[%emt 0:01:14]} Ne3 {[%emt 0:00:24]} 37. Re1 {[%emt 0:00:24]} g4+ {[%emt 0:00:51]} 38. Kf2 {[%emt 0:00:22]} Re5 {[%emt 0:00:48]} 39. b6+ {[%emt 0:00:40]} axb6 {[%emt 0:00:26]} 40. cxb6+ {[%emt 0:00:01]} Kb8 {[%emt 0:00:22]} 41. Rh1 {[%emt 0:03:14]} Rexd5 {[%emt 0:01:13]} 42. Rxd5 {[%emt 0:00:27]} Nxd5 {[%emt 0:00:07]} 0-1

[Event "GER-ch Women Open 2019"]
[Site "Bodenmais"]
[Date "2019.07.28"]
[Round "2.4"]
[White "Steckmann, Kerstin"]
[Black "Navarro Ortega-Villaizan, Lucia"]
[Result "1-0"]
[ECO "D11"]
[WhiteElo "1653"]
[BlackElo "1113"]
[Annotator "NA RC"]
[PlyCount "111"]
[EventDate "2019.07.27"]
[EventType "swiss"]
[EventCountry "GER"]
[SourceTitle "playchess.com"]
[Source "ChessBase"]
[SourceQuality "1"]
[TimeControl "40/5400+30:900+30"]

1. d4 {[%emt 0:00:00]} d5 {[%emt 0:00:00]} 2. c4 {[%emt 0:00:00]} c6 {[%emt 0:00:12]} 3. Nf3 {[%emt 0:00:00]} Bf5 {[%emt 0:01:24]} 4. Nc3 {[%emt 0:00:44]} Nf6 {[%emt 0:00:44]} 5. Qb3 {[%emt 0:08:39]} Qb6 {[%emt 0:05:51]} 6. cxd5 {[%emt 0:04:32]} cxd5 {[%emt 0:06:12]} 7. Qxb6 {[%emt 0:01:42]} axb6 {[%emt 0:00:36]} 8. Nb5 {[%emt 0:01:30]} Na6 {[%emt 0:02:17]} 9. Bf4 {[%emt 0:03:11]} Rc8 {[%emt 0:03:45]} 10. a3 {[%emt 0:02:31]} Bd7 {[%emt 0:05:03]} 11. e3 {[%emt 0:00:53]} Ne4 {[%emt 0:08:54]} 12. Bd3 {[%emt 0:03:09]} Nd6 {[%emt 0:03:35]} 13. Nxd6+ {[%emt 0:04:13]} exd6 {[%emt 0:01:35]} 14. O-O {[%emt 0:00:04]} Be7 {[%emt 0:00:48]} 15. Rac1 {[%emt 0:01:44]} O-O {[%emt 0:00:21]} 16. Bg3 {[%emt 0:10:28]} b5 {[%emt 0:02:54]} 17. b4 {[%emt 0:01:53]} Nc7 {[%emt 0:02:28]} 18. Rc3 {[%emt 0:00:45]} Ne6 {[%emt 0:01:00]} 19. Rfc1 {[%emt 0:00:40]} Rxc3 {[%emt 0:04:31]} 20. Rxc3 {[%emt 0:00:01]} f5 {[%emt 0:01:20]} 21. Bh4 {[%emt 0:11:34]} Bxh4 {[%emt 0:00:54]} 22. Nxh4 {[%emt 0:00:02]} f4 {[%emt 0:01:00]} 23. Nf5 {[%emt 0:02:25]} fxe3 {[%emt 0:03:36]} 24. fxe3 {[%emt 0:00:23]} Rf7 {[%emt 0:03:22]} 25. Nxd6 {[%emt 0:00:43]} Rf8 {[%emt 0:07:14]} 26. Nxb7 {[%emt 0:05:36]} Ng5 {[%emt 0:02:17]} 27. Nd6 {[%emt 0:05:50]} h5 {[%emt 0:03:21]} 28. Nxb5 {[%emt 0:01:14]} h4 {[%emt 0:00:50]} 29. h3 {[%emt 0:00:45]} Ne4 {[%emt 0:01:30]} 30. Bxe4 {[%emt 0:02:02]} dxe4 {[%emt 0:02:04]} 31. Nd6 {[%emt 0:00:37]} Rf6 {[%emt 0:02:55]} 32. Nxe4 {[%emt 0:00:09]} Rg6 {[%emt 0:00:10]} 33. Nf2 {[%emt 0:00:29]} Kf7 {[%emt 0:01:00]} 34. Rc7 {[%emt 0:01:04]} Ke7 {[%emt 0:00:24]} 35. Ng4 {[%emt 0:05:38]} Kd8 {[%emt 0:00:34]} 36. Rxd7+ {[%emt 0:00:10]} Kc8 {[%emt 0:02:32]} 37. Rf7 {[%emt 0:01:26]} Ra6 {[%emt 0:00:14]} 38. Rxg7 {[%emt 0:06:03]} Rxa3 {[%emt 0:00:21]} 39. Kf2 {[%emt 0:00:21]} Rb3 {[%emt 0:00:21]} 40. Rh7 {[%emt 0:04:33]} Rxb4 {[%emt 0:00:25]} 41. Rxh4 {[%emt 0:15:01]} Rb2+ {[%emt 0:15:06]} 42. Kf3 {[%emt 0:00:07]} Rb6 {[%emt 0:00:31]} 43. Ne5 {[%emt 0:00:33]} Rb3 {[%emt 0:01:06]} 44. g4 {[%emt 0:00:15]} Kc7 {[%emt 0:00:12]} 45. Rh6 {[%emt 0:00:50]} Rb1 {[%emt 0:00:23]} 46. h4 {[%emt 0:01:14]} Rf1+ {[%emt 0:00:05]} 47. Ke4 {[%emt 0:00:04]} Rg1 {[%emt 0:00:10]} 48. g5 {[%emt 0:00:08]} Kd8 {[%emt 0:00:06]} 49. g6 {[%emt 0:00:12]} Ke8 {[%emt 0:00:28]} 50. Rh7 {[%emt 0:01:06]} Kf8 {[%emt 0:00:32]} 51. Rf7+ {[%emt 0:00:38]} Kg8 {[%emt 0:00:14]} 52. h5 {[%emt 0:02:51]} Rg4+ {[%emt 0:02:57]} 53. Nxg4 {[%emt 0:00:15]} Kh8 {[%emt 0:00:22]} 54. h6 {[%emt 0:00:49]} Kg8 {[%emt 0:00:42]} 55. Kf5 {[%emt 0:00:14]} Kh8 {[%emt 0:00:13]} 56. Rf8# 1-0

[Event "GER-ch Women Open 2019"]
[Site "Bodenmais"]
[Date "2019.07.28"]
[Round "2.5"]
[White "Wolff, Beate"]
[Black "Peglau, Lorena"]
[Result "1-0"]
[ECO "A11"]
[WhiteElo "1238"]
[BlackElo "762"]
[Annotator "NA RC"]
[PlyCount "113"]
[EventDate "2019.07.27"]
[EventType "swiss"]
[EventCountry "GER"]
[SourceTitle "playchess.com"]
[Source "ChessBase"]
[SourceQuality "1"]
[TimeControl "40/5400+30:900+30"]

1. c4 {[%emt 0:00:00]} c6 {[%emt 0:01:40]} 2. Nf3 {[%emt 0:00:42]} d5 {[%emt 0:00:19]} 3. cxd5 {[%emt 0:00:57]} cxd5 {[%emt 0:00:08]} 4. d4 {[%emt 0:01:01]} Bf5 {[%emt 0:00:13]} 5. g3 {[%emt 0:00:54]} Nf6 {[%emt 0:00:18]} 6. Bg2 {[%emt 0:00:43]} Nbd7 {[%emt 0:00:16]} 7. O-O {[%emt 0:00:19]} e6 {[%emt 0:00:23]} 8. Nc3 {[%emt 0:02:34]} Be7 {[%emt 0:00:42]} 9. h3 {[%emt 0:02:39]} Qc7 {[%emt 0:00:48]} 10. Nb5 {[%emt 0:09:21]} Qb6 11. a4 a6 {[%emt 0:05:01]} 12. Nc3 {[%emt 0:03:18]} O-O {[%emt 0:00:43]} 13. b3 {[%emt 0:08:11]} Qc7 {[%emt 0:00:35]} 14. Bb2 {[%emt 0:01:13]} e5 {[%emt 0:00:23]} 15. Rc1 {[%emt 0:02:18]} exd4 {[%emt 0:00:22]} 16. Nxd5 {[%emt 0:06:27]} Qd6 {[%emt 0:00:47]} 17. Nxe7+ {[%emt 0:02:06]} Qxe7 {[%emt 0:00:24]} 18. Nxd4 {[%emt 0:02:33]} Bg6 {[%emt 0:00:53]} 19. Bxb7 {[%emt 0:01:19]} Ra7 {[%emt 0:00:44]} 20. Nc6 {[%emt 0:03:19]} Qe4 {[%emt 0:01:25]} 21. Nxa7 {[%emt 0:03:29]} Qxb7 {[%emt 0:00:10]} 22. Nc6 {[%emt 0:01:04]} Re8 {[%emt 0:00:33]} 23. Re1 {[%emt 0:05:26]} Be4 {[%emt 0:00:26]} 24. Nd4 {[%emt 0:05:38]} Bg2 {[%emt 0:00:40]} 25. f3 {[%emt 0:04:58]} Bxh3 {[%emt 0:00:20]} 26. Kh2 {[%emt 0:02:00]} Be6 {[%emt 0:00:41]} 27. Nxe6 {[%emt 0:02:25]} Rxe6 {[%emt 0:00:19]} 28. Qc2 {[%emt 0:02:07]} g6 {[%emt 0:00:33]} 29. Qc8+ {[%emt 0:00:42]} Qxc8 {[%emt 0:00:13]} 30. Rxc8+ {[%emt 0:00:05]} Kg7 {[%emt 0:00:13]} 31. e4 {[%emt 0:02:28]} Rb6 {[%emt 0:00:49]} 32. Re3 {[%emt 0:01:42]} Rd6 {[%emt 0:02:13]} 33. Re2 {[%emt 0:02:40]} Nb6 {[%emt 0:00:48]} 34. Rc7 {[%emt 0:01:41]} Na8 {[%emt 0:01:07]} 35. Rc8 {[%emt 0:02:05]} Nb6 {[%emt 0:01:52]} 36. Rc5 {[%emt 0:02:07]} Kh6 {[%emt 0:00:37]} 37. Bxf6 {[%emt 0:01:14]} Rxf6 {[%emt 0:00:17]} 38. Kg2 {[%emt 0:00:29]} g5 {[%emt 0:00:38]} 39. Re1 {[%emt 0:01:54]} Kh5 {[%emt 0:00:18]} 40. Rh1+ {[%emt 0:00:18]} Kg6 {[%emt 0:00:22]} 41. g4 {[%emt 0:16:24]} Nd7 {[%emt 0:15:36]} 42. Rd5 {[%emt 0:01:48]} Nb6 {[%emt 0:00:32]} 43. Rc5 {[%emt 0:00:44]} Nd7 {[%emt 0:00:26]} 44. Rc8 {[%emt 0:01:27]} Kg7 {[%emt 0:00:32]} 45. Re1 {[%emt 0:00:55]} Nb6 {[%emt 0:00:16]} 46. Rc7 {[%emt 0:00:20]} Na8 {[%emt 0:00:28]} 47. Rc5 {[%emt 0:00:58]} Nb6 {[%emt 0:00:55]} 48. Rd1 {[%emt 0:00:48]} Kg6 {[%emt 0:00:20]} 49. a5 {[%emt 0:00:15]} h5 {[%emt 0:00:29]} 50. axb6 {[%emt 0:00:20]} Rxb6 {[%emt 0:00:24]} 51. gxh5+ {[%emt 0:00:26]} Kxh5 {[%emt 0:00:17]} 52. Rh1+ {[%emt 0:00:14]} Kg6 {[%emt 0:00:17]} 53. Kg3 {[%emt 0:00:48]} Rxb3 {[%emt 0:00:15]} 54. Rc6+ {[%emt 0:00:06]} f6 {[%emt 0:00:28]} 55. Rxa6 {[%emt 0:00:05]} Re3 {[%emt 0:01:21]} 56. Rd1 {[%emt 0:00:57]} Kh5 {[%emt 0:00:35]} 57. Rxf6 {[%emt 0:01:18]} 1-0

[Event "GER-ch Women Open 2019"]
[Site "Bodenmais"]
[Date "2019.07.28"]
[Round "2.6"]
[White "Peglau, Dora"]
[Black "Weinmann, Helene"]
[Result "1-0"]
[ECO "A04"]
[WhiteElo "1300"]
[BlackElo "1520"]
[Annotator "NA RC"]
[PlyCount "49"]
[EventDate "2019.07.27"]
[EventType "swiss"]
[EventCountry "GER"]
[SourceTitle "playchess.com"]
[Source "ChessBase"]
[SourceQuality "1"]
[TimeControl "40/5400+30:900+30"]

1. Nf3 {[%emt 0:02:03]} Nc6 {[%emt 0:00:03]} 2. d4 {[%emt 0:00:12]} d5 {[%emt 0:00:18]} 3. Bf4 {[%emt 0:00:11]} Nf6 {[%emt 0:00:58]} 4. e3 {[%emt 0:01:34]} e6 {[%emt 0:02:13]} 5. c4 {[%emt 0:00:21]} Bd6 {[%emt 0:00:38]} 6. Bg3 {[%emt 0:00:20]} O-O {[%emt 0:02:07]} 7. Nc3 {[%emt 0:02:45]} a6 {[%emt 0:03:48]} 8. Bd3 {[%emt 0:01:19]} dxc4 {[%emt 0:04:25]} 9. Bxc4 {[%emt 0:00:10]} Re8 {[%emt 0:00:23]} 10. O-O {[%emt 0:00:44]} e5 {[%emt 0:07:43]} 11. Ng5 {[%emt 0:05:55]} Rf8 {[%emt 0:02:25]} 12. dxe5 {[%emt 0:00:29]} Bxe5 {[%emt 0:04:42]} 13. Qxd8 {[%emt 0:01:52]} Rxd8 {[%emt 0:00:50]} 14. Nxf7 {[%emt 0:00:48]} Nd5 {[%emt 0:06:06]} 15. Nxd8 {[%emt 0:00:34]} Bxc3 {[%emt 0:02:28]} 16. Bxd5+ {[%emt 0:00:14]} Kf8 {[%emt 0:00:39]} 17. Nxc6 {[%emt 0:00:57]} Bxb2 {[%emt 0:03:02]} 18. Rab1 {[%emt 0:00:11]} Ba3 {[%emt 0:01:55]} 19. Nd4 {[%emt 0:00:24]} c6 {[%emt 0:02:28]} 20. Be6 {[%emt 0:00:36]} c5 {[%emt 0:05:35]} 21. Bxc8 {[%emt 0:01:37]} cxd4 {[%emt 0:00:35]} 22. Bxb7 {[%emt 0:00:30]} Rd8 {[%emt 0:00:45]} 23. Rfd1 d3 {[%emt 0:01:22]} 24. Rb3 {[%emt 0:00:55]} Be7 {[%emt 0:03:23]} 25. Rbxd3 {[%emt 0:00:22]} 1-0

[Event "GER-ch Women Open 2019"]
[Site "Bodenmais"]
[Date "2019.07.28"]
[Round "2.7"]
[White "Navarro Ortega-Villaizan, Alba"]
[Black "Peglau, Adelheid"]
[Result "0-1"]
[ECO "B15"]
[WhiteElo "700"]
[BlackElo "1199"]
[Annotator "NA RC"]
[PlyCount "116"]
[EventDate "2019.07.27"]
[EventType "swiss"]
[EventCountry "GER"]
[SourceTitle "playchess.com"]
[Source "ChessBase"]
[SourceQuality "1"]
[TimeControl "40/5400+30:900+30"]

1. e4 {[%emt 0:00:00]} c6 {[%emt 0:05:46]} 2. d4 {[%emt 0:00:37]} d5 {[%emt 0:00:25]} 3. Nc3 {[%emt 0:00:42]} dxe4 4. Bc4 Nf6 {[%emt 0:05:23]} 5. Bg5 {[%emt 0:02:39]} Qb6 {[%emt 0:11:40]} 6. a3 {[%emt 0:05:12]} Bf5 {[%emt 0:03:38]} 7. Bxf6 {[%emt 0:03:17]} exf6 {[%emt 0:03:48]} 8. Nge2 {[%emt 0:03:00]} Bd6 {[%emt 0:02:42]} 9. O-O {[%emt 0:02:26]} O-O {[%emt 0:00:55]} 10. Qd2 {[%emt 0:01:59]} Bg6 {[%emt 0:02:27]} 11. Na4 {[%emt 0:02:52]} Qc7 {[%emt 0:02:06]} 12. Nac3 {[%emt 0:05:22]} Nd7 {[%emt 0:01:02]} 13. d5 {[%emt 0:03:58]} c5 {[%emt 0:10:08]} 14. Nb5 {[%emt 0:03:04]} Qb6 {[%emt 0:02:54]} 15. Nxd6 {[%emt 0:01:42]} Qxd6 {[%emt 0:00:13]} 16. Nc3 {[%emt 0:00:53]} a6 {[%emt 0:02:25]} 17. a4 {[%emt 0:02:10]} Rfe8 {[%emt 0:02:58]} 18. Rfb1 {[%emt 0:02:34]} Rad8 {[%emt 0:01:59]} 19. b4 {[%emt 0:01:58]} cxb4 {[%emt 0:01:56]} 20. Na2 {[%emt 0:01:26]} a5 21. c3 {[%emt 0:02:42]} Nb6 {[%emt 0:02:19]} 22. Bb5 {[%emt 0:01:59]} Re5 {[%emt 0:04:05]} 23. Qf4 {[%emt 0:04:01]} Rxd5 {[%emt 0:02:00]} 24. Qxd6 {[%emt 0:00:51]} R5xd6 {[%emt 0:00:31]} 25. Be2 {[%emt 0:01:28]} e3 {[%emt 0:03:01]} 26. Rc1 {[%emt 0:01:04]} exf2+ {[%emt 0:00:28]} 27. Kf1 {[%emt 0:01:27]} bxc3 {[%emt 0:01:47]} 28. Nxc3 {[%emt 0:00:41]} Nd5 {[%emt 0:03:14]} 29. Nb5 {[%emt 0:00:54]} Rb6 {[%emt 0:02:18]} 30. Kxf2 {[%emt 0:01:09]} Nf4 {[%emt 0:01:12]} 31. Rd1 {[%emt 0:00:59]} Rxd1 {[%emt 0:03:56]} 32. Rxd1 {[%emt 0:00:31]} Ne6 {[%emt 0:00:17]} 33. Nc7 {[%emt 0:00:53]} h6 {[%emt 0:00:57]} 34. Nd5 {[%emt 0:01:32]} Rb3 {[%emt 0:01:03]} 35. Ne7+ {[%emt 0:00:54]} Kf8 {[%emt 0:02:21]} 36. Bc4 {[%emt 0:00:37]} Rb2+ {[%emt 0:00:30]} 37. Kf1 {[%emt 0:00:50]} Kxe7 {[%emt 0:00:20]} 38. Bxe6 {[%emt 0:02:05]} fxe6 {[%emt 0:00:31]} 39. Rd4 {[%emt 0:00:33]} e5 {[%emt 0:00:57]} 40. Rd5 {[%emt 0:00:55]} b6 {[%emt 0:00:27]} 41. Ke1 {[%emt 0:15:28]} Be4 {[%emt 0:15:22]} 42. Rd1 {[%emt 0:00:55]} Bxg2 {[%emt 0:01:04]} 43. Ra1 {[%emt 0:00:32]} Ke6 {[%emt 0:00:27]} 44. Kd1 {[%emt 0:00:40]} Bf3+ {[%emt 0:00:16]} 45. Kc1 {[%emt 0:00:26]} Rxh2 {[%emt 0:00:05]} 46. Ra3 {[%emt 0:00:34]} Bd5 {[%emt 0:01:40]} 47. Kb1 {[%emt 0:03:33]} f5 {[%emt 0:00:12]} 48. Rg3 {[%emt 0:01:08]} g5 {[%emt 0:00:24]} 49. Rg1 {[%emt 0:00:44]} f4 {[%emt 0:00:19]} 50. Kc1 {[%emt 0:00:51]} f3 {[%emt 0:00:57]} 51. Kd1 {[%emt 0:00:26]} f2 52. Rf1 {[%emt 0:00:38]} Bc4 {[%emt 0:01:59]} 53. Rxf2 {[%emt 0:00:36]} Rxf2 {[%emt 0:00:04]} 54. Kc1 {[%emt 0:00:33]} g4 {[%emt 0:00:03]} 55. Kd1 {[%emt 0:00:30]} g3 {[%emt 0:00:08]} 56. Ke1 {[%emt 0:00:29]} Ra2 {[%emt 0:00:48]} 57. Kd1 {[%emt 0:00:24]} g2 {[%emt 0:00:07]} 58. Kc1 {[%emt 0:00:30]} g1=Q# {[%emt 0:00:45]} 0-1

[Event "GER-ch Women Open 2019"]
[Site "Bodenmais"]
[Date "2019.07.29"]
[Round "3.1"]
[White "Peglau, Sarah"]
[Black "Von Herman, Brigitte"]
[Result "0-1"]
[ECO "D02"]
[WhiteElo "1525"]
[BlackElo "2062"]
[Annotator "NA"]
[PlyCount "78"]
[EventDate "2019.07.27"]
[EventType "swiss"]
[EventCountry "GER"]
[SourceTitle "playchess.com"]
[Source "ChessBase"]
[SourceQuality "1"]
[TimeControl "40/5400+30:900+30"]

1. d4 {[%emt 0:00:00]} d5 {[%emt 0:00:00]} 2. Nf3 {[%emt 0:00:00]} Nf6 {[%emt 0:00:06]} 3. Bf4 {[%emt 0:00:01]} e6 {[%emt 0:00:25]} 4. e3 {[%emt 0:00:36]} c5 {[%emt 0:03:27]} 5. c4 {[%emt 0:08:57]} Nc6 {[%emt 0:03:05]} 6. Nc3 {[%emt 0:01:00]} a6 {[%emt 0:06:51]} 7. Rc1 {[%emt 0:10:18]} cxd4 {[%emt 0:12:06]} 8. Nxd4 {[%emt 0:02:11]} Be7 {[%emt 0:01:16]} 9. cxd5 {[%emt 0:05:28]} exd5 {[%emt 0:02:31]} 10. Be2 {[%emt 0:03:09]} O-O {[%emt 0:02:06]} 11. O-O {[%emt 0:00:48]} h6 {[%emt 0:03:04]} 12. Qd2 {[%emt 0:07:01]} Bb4 {[%emt 0:05:54]} 13. Bf3 {[%emt 0:03:58]} Ne4 {[%emt 0:05:58]} 14. Bxe4 {[%emt 0:01:50]} dxe4 {[%emt 0:00:05]} 15. Rfd1 {[%emt 0:02:09]} Nxd4 {[%emt 0:04:30]} 16. Qxd4 {[%emt 0:00:48]} Qxd4 {[%emt 0:00:31]} 17. Rxd4 {[%emt 0:00:14]} Bxc3 {[%emt 0:00:08]} 18. Rxc3 {[%emt 0:00:18]} Be6 {[%emt 0:00:08]} 19. Rxe4 {[%emt 0:10:30]} Bxa2 {[%emt 0:02:53]} 20. Re7 {[%emt 0:06:04]} Rfd8 {[%emt 0:03:44]} 21. Kf1 {[%emt 0:01:28]} b5 {[%emt 0:07:54]} 22. Ke1 {[%emt 0:08:46]} a5 {[%emt 0:08:56]} 23. Rcc7 {[%emt 0:04:20]} a4 {[%emt 0:02:02]} 24. Red7 {[%emt 0:03:09]} Rxd7 {[%emt 0:07:43]} 25. Rxd7 {[%emt 0:00:01]} Rc8 {[%emt 0:00:18]} 26. Rb7 {[%emt 0:02:53]} Rc5 {[%emt 0:02:16]} 27. Bd6 {[%emt 0:04:58]} Rd5 {[%emt 0:01:04]} 28. Bb4 {[%emt 0:00:30]} Bb3 {[%emt 0:00:47]} 29. Rb6 {[%emt 0:05:52]} Rd1+ {[%emt 0:01:06]} 30. Ke2 {[%emt 0:00:02]} Rg1 {[%emt 0:01:06]} 31. g3 {[%emt 0:02:54]} Bc4+ {[%emt 0:00:47]} 32. Kf3 {[%emt 0:00:58]} Rc1 {[%emt 0:00:29]} 33. e4 {[%emt 0:03:05]} Rc2 {[%emt 0:00:39]} 34. Bc3 {[%emt 0:00:34]} a3 {[%emt 0:00:28]} 35. Bd4 {[%emt 0:01:54]} axb2 {[%emt 0:00:20]} 36. Bxb2 {[%emt 0:00:30]} Rxb2 {[%emt 0:00:06]} 37. Ke3 {[%emt 0:00:04]} Kf8 {[%emt 0:00:26]} 38. Rb7 {[%emt 0:00:20]} Rb3+ {[%emt 0:00:38]} 39. Kd4 {[%emt 0:00:13]} Rf3 {[%emt 0:00:19]} 0-1

[Event "GER-ch Women Open 2019"]
[Site "Bodenmais"]
[Date "2019.07.29"]
[Round "3.2"]
[White "Sewald, Kathrin"]
[Black "Steckmann, Kerstin"]
[Result "1-0"]
[ECO "C00"]
[WhiteElo "2016"]
[BlackElo "1653"]
[Annotator "NA"]
[PlyCount "77"]
[EventDate "2019.07.27"]
[EventType "swiss"]
[EventCountry "GER"]
[SourceTitle "playchess.com"]
[Source "ChessBase"]
[SourceQuality "1"]
[TimeControl "40/5400+30:900+30"]

1. e4 {[%emt 0:00:00]} e6 {[%emt 0:00:00]} 2. d3 {[%emt 0:00:00]} d5 {[%emt 0:00:56]} 3. Nd2 {[%emt 0:00:00]} c5 {[%emt 0:01:11]} 4. Ngf3 {[%emt 0:00:20]} Nc6 {[%emt 0:00:19]} 5. g3 {[%emt 0:00:13]} Nf6 {[%emt 0:02:35]} 6. Bg2 {[%emt 0:00:52]} Be7 {[%emt 0:01:27]} 7. O-O {[%emt 0:00:09]} O-O {[%emt 0:00:04]} 8. e5 {[%emt 0:00:19]} Nd7 {[%emt 0:01:33]} 9. Re1 {[%emt 0:02:06]} Qc7 {[%emt 0:00:26]} 10. Qe2 {[%emt 0:00:26]} Nb4 {[%emt 0:04:57]} 11. Nf1 {[%emt 0:00:58]} h6 {[%emt 0:03:01]} 12. a3 {[%emt 0:00:16]} Nc6 {[%emt 0:00:18]} 13. h4 {[%emt 0:05:06]} Qd8 {[%emt 0:11:26]} 14. Bf4 {[%emt 0:03:01]} Re8 {[%emt 0:02:47]} 15. c3 {[%emt 0:07:39]} Nf8 {[%emt 0:09:38]} 16. b4 {[%emt 0:09:53]} a6 {[%emt 0:04:37]} 17. bxc5 {[%emt 0:08:39]} Bxc5 {[%emt 0:00:22]} 18. d4 {[%emt 0:00:07]} Be7 {[%emt 0:02:05]} 19. N3d2 {[%emt 0:01:58]} b5 {[%emt 0:09:08]} 20. Qg4 {[%emt 0:03:49]} Kh8 {[%emt 0:04:37]} 21. Qh5 {[%emt 0:01:31]} Nh7 {[%emt 0:05:52]} 22. Qxf7 {[%emt 0:07:43]} Rf8 23. Qg6 {[%emt 0:00:56]} Bxh4 {[%emt 0:07:40]} 24. Be3 {[%emt 0:16:56]} Be7 {[%emt 0:01:15]} 25. f4 {[%emt 0:03:44]} Qe8 {[%emt 0:00:50]} 26. Qxe8 {[%emt 0:08:08]} Rxe8 {[%emt 0:00:01]} 27. g4 {[%emt 0:01:52]} Bd7 {[%emt 0:08:36]} 28. Nb3 {[%emt 0:06:14]} Rac8 {[%emt 0:03:24]} 29. Bf2 {[%emt 0:01:42]} Nd8 {[%emt 0:02:11]} 30. Rec1 {[%emt 0:01:47]} Nf8 {[%emt 0:01:43]} 31. Ne3 {[%emt 0:01:22]} Ng6 {[%emt 0:00:56]} 32. f5 {[%emt 0:00:42]} Nf4 {[%emt 0:00:19]} 33. Bf1 {[%emt 0:00:21]} Bg5 {[%emt 0:01:45]} 34. Nc5 {[%emt 0:00:13]} Bc6 {[%emt 0:01:54]} 35. Nxa6 {[%emt 0:01:07]} exf5 {[%emt 0:04:58]} 36. gxf5 {[%emt 0:00:08]} Nf7 {[%emt 0:01:23]} 37. Nb4 {[%emt 0:01:15]} Nh5 {[%emt 0:00:34]} 38. Nxc6 {[%emt 0:00:19]} Rxc6 {[%emt 0:00:02]} 39. Bxb5 1-0

[Event "GER-ch Women Open 2019"]
[Site "Bodenmais"]
[Date "2019.07.29"]
[Round "3.3"]
[White "Just, Anita"]
[Black "Ries, Jutta"]
[Result "1/2-1/2"]
[ECO "B02"]
[WhiteElo "1875"]
[BlackElo "1983"]
[Annotator "NA"]
[PlyCount "97"]
[EventDate "2019.07.27"]
[EventType "swiss"]
[EventCountry "GER"]
[SourceTitle "playchess.com"]
[Source "ChessBase"]
[SourceQuality "1"]
[TimeControl "40/5400+30:900+30"]

1. e4 {[%emt 0:00:00]} Nf6 {[%emt 0:00:00]} 2. e5 {[%emt 0:00:00]} Ng8 {[%emt 0:00:00]} 3. d4 {[%emt 0:00:44]} d6 {[%emt 0:00:49]} 4. f4 {[%emt 0:02:09]} dxe5 {[%emt 0:03:41]} 5. fxe5 {[%emt 0:00:26]} Nc6 {[%emt 0:02:21]} 6. c3 {[%emt 0:05:45]} Bf5 {[%emt 0:06:25]} 7. Nf3 {[%emt 0:09:58]} e6 {[%emt 0:01:49]} 8. Nbd2 {[%emt 0:00:42]} Nge7 {[%emt 0:23:43]} 9. Be2 {[%emt 0:05:03]} Nd5 {[%emt 0:08:06]} 10. Nf1 {[%emt 0:03:41]} h6 {[%emt 0:04:05]} 11. Ng3 {[%emt 0:02:07]} Bg6 {[%emt 0:25:52]} 12. O-O {[%emt 0:02:05]} Be7 {[%emt 0:02:06]} 13. Ne1 {[%emt 0:09:06]} Bg5 {[%emt 0:06:36]} 14. Bxg5 {[%emt 0:12:35]} Qxg5 {[%emt 0:02:23]} 15. Qc1 {[%emt 0:05:05]} Qxc1 {[%emt 0:01:14]} 16. Rxc1 {[%emt 0:00:05]} O-O {[%emt 0:00:34]} 17. Nd3 {[%emt 0:04:16]} a5 {[%emt 0:01:43]} 18. Nf4 {[%emt 0:03:55]} Nxf4 {[%emt 0:00:51]} 19. Rxf4 {[%emt 0:00:05]} Ne7 {[%emt 0:00:20]} 20. Rcf1 {[%emt 0:05:28]} Nd5 {[%emt 0:01:24]} 21. R4f3 {[%emt 0:01:17]} Rad8 {[%emt 0:00:23]} 22. h4 {[%emt 0:02:41]} Ne7 {[%emt 0:02:10]} 23. h5 {[%emt 0:01:38]} Bf5 {[%emt 0:01:06]} 24. Bd3 {[%emt 0:06:54]} Bxd3 {[%emt 0:00:39]} 25. Rxd3 {[%emt 0:00:04]} c5 {[%emt 0:00:46]} 26. Ne4 {[%emt 0:00:27]} cxd4 {[%emt 0:00:23]} 27. cxd4 {[%emt 0:00:20]} Nc6 {[%emt 0:02:21]} 28. Nd6 {[%emt 0:03:15]} Rd7 {[%emt 0:00:06]} 29. a3 {[%emt 0:00:18]} f6 {[%emt 0:00:39]} 30. Re1 {[%emt 0:09:48]} fxe5 {[%emt 0:00:56]} 31. dxe5 {[%emt 0:00:07]} Rfd8 {[%emt 0:00:44]} 32. Rb3 {[%emt 0:01:35]} Nxe5 {[%emt 0:00:49]} 33. Rxe5 {[%emt 0:00:13]} Rxd6 {[%emt 0:00:01]} 34. Rxb7 {[%emt 0:00:08]} Ra6 {[%emt 0:01:16]} 35. Rbb5 {[%emt 0:00:10]} Rda8 {[%emt 0:00:03]} 36. Kf2 {[%emt 0:00:10]} Kf7 {[%emt 0:00:02]} 37. Ke3 {[%emt 0:00:27]} Kf6 {[%emt 0:00:15]} 38. Rec5 {[%emt 0:01:12]} R8a7 {[%emt 0:00:41]} 39. Ke4 {[%emt 0:00:53]} g6 {[%emt 0:01:28]} 40. g4 {[%emt 0:00:41]} gxh5 {[%emt 0:00:33]} 41. gxh5 {[%emt 0:17:06]} a4 {[%emt 0:04:54]} 42. Rc8 {[%emt 0:00:00]} Ra5 {[%emt 0:06:48]} 43. Rf8+ {[%emt 0:00:00]} Ke7 {[%emt 0:02:46]} 44. Rfb8 {[%emt 0:00:00]} Kf6 {[%emt 0:00:27]} 45. Kf4 {[%emt 0:00:00]} Ra8 {[%emt 0:00:38]} 46. R8b7 {[%emt 0:00:00]} R8a7 {[%emt 0:00:02]} 47. Rb8 {[%emt 0:00:00]} Ra8 {[%emt 0:00:03]} 48. R8b7 {[%emt 0:00:00]} R8a7 {[%emt 0:00:05]} 49. Ke4 {Ke5+} 1/2-1/2